[Event "Titled Tuesday Blitz January 03 Early 2023"]
[White "djokovic74"]
[Black "Najdin, Danil"]
[BlackFideId "4172426"]
[WhiteElo "2575"]
[BlackElo "2235"]
[Result "1-0"]
[Round "03"]
[TimeControl "180+2"]
[Date "2023.01.03"]
[WhiteClock "0:00:46"]
[BlackClock "0:01:29"]

1. e4 {[%clk 0:03:00]}  g6 {[%clk 0:02:56]} 2. d4 {[%clk 0:03:00]}  c6 {[%clk 0:02:54]} 3. Nf3 {[%clk 0:03:00]}  d5 {[%clk 0:02:53]} 4. Nc3 {[%clk 0:03:01]}  Bg7 {[%clk 0:02:53]} 5. Be2 {[%clk 0:03:01]}  Nf6 {[%clk 0:02:41]} 6. e5 {[%clk 0:02:40]}  Ne4 {[%clk 0:02:41]} 7. Nxe4 {[%clk 0:02:27]}  dxe4 {[%clk 0:02:42]} 8. Ng5 {[%clk 0:02:27]}  c5 {[%clk 0:02:41]} 9. dxc5 {[%clk 0:01:56]}  Qa5+ {[%clk 0:02:40]} 10. Bd2 {[%clk 0:01:50]}  Qxc5 {[%clk 0:02:39]} 11. Nxe4 {[%clk 0:01:43]}  Qxe5 {[%clk 0:02:29]} 12. Bc3 {[%clk 0:01:43]}  Qxe4 {[%clk 0:02:30]} 13. Bxg7 {[%clk 0:01:43]}  Rg8 {[%clk 0:02:30]} 14. Bc3 {[%clk 0:01:34]}  Qxg2 {[%clk 0:02:30]} 15. Bf3 {[%clk 0:01:33]}  Qg5 {[%clk 0:02:29]} 16. Qe2 {[%clk 0:01:27]}  Nc6 {[%clk 0:02:22]} 17. Rd1 {[%clk 0:01:14]}  Bd7 {[%clk 0:02:14]} 18. h4 {[%clk 0:01:02]}  Qf4 {[%clk 0:02:05]} 19. Bd2 {[%clk 0:01:02]}  Qa4 {[%clk 0:01:59]} 20. b3 {[%clk 0:01:01]}  Qxa2 {[%clk 0:01:58]} 21. Bc3 {[%clk 0:01:00]}  O-O-O {[%clk 0:01:54]} 22. Ra1 {[%clk 0:00:56]}  Qxa1+ {[%clk 0:01:34]} 23. Bxa1 {[%clk 0:00:55]}  Bf5 {[%clk 0:01:29]} 24. Bxc6 {[%clk 0:00:49]}  bxc6 {[%clk 0:01:29]} 25. Qa6+ {[%clk 0:00:48]}  Kb8 {[%clk 0:01:29]} 26. Be5+ {[%clk 0:00:47]}  Ka8 {[%clk 0:01:29]} 27. Qxc6# {[%clk 0:00:46]} 1-0


[Site "https://www.chess.com"]

[Event "Titled Tuesday Blitz January 03 Early 2023"]
[White "Ansh M Shah"]
[Black "Carnicelli, Valerio"]
[WhiteFideId "25033379"]
[BlackFideId "856185"]
[WhiteElo "2171"]
[BlackElo "2370"]
[Result "1-0"]
[Round "03"]
[TimeControl "180+2"]
[Date "2023.01.03"]
[WhiteClock "0:00:12"]
[BlackClock "0:00:11"]

1. d4 {[%clk 0:03:00]}  Nf6 {[%clk 0:02:59]} 2. c4 {[%clk 0:03:01]}  c5 {[%clk 0:02:57]} 3. d5 {[%clk 0:03:01]}  e6 {[%clk 0:02:57]} 4. Nc3 {[%clk 0:03:00]}  exd5 {[%clk 0:02:57]} 5. cxd5 {[%clk 0:03:01]}  d6 {[%clk 0:02:57]} 6. g3 {[%clk 0:03:01]}  g6 {[%clk 0:02:57]} 7. Bg2 {[%clk 0:03:02]}  Bg7 {[%clk 0:02:58]} 8. Nf3 {[%clk 0:03:03]}  O-O {[%clk 0:02:58]} 9. Bf4 {[%clk 0:03:03]}  Nh5 {[%clk 0:02:46]} 10. Bg5 {[%clk 0:03:01]}  Qa5 {[%clk 0:02:45]} 11. O-O {[%clk 0:02:59]}  Re8 {[%clk 0:02:43]} 12. Qd2 {[%clk 0:02:50]}  b5 {[%clk 0:02:39]} 13. Ne4 {[%clk 0:02:42]}  Qxd2 {[%clk 0:02:37]} 14. Nfxd2 {[%clk 0:02:42]}  Bf8 {[%clk 0:02:06]} 15. Bf3 {[%clk 0:02:05]}  f5 {[%clk 0:02:05]} 16. Nxc5 {[%clk 0:01:49]}  dxc5 {[%clk 0:01:37]} 17. d6 {[%clk 0:01:46]}  Bd7 {[%clk 0:01:20]} 18. Bxa8 {[%clk 0:01:44]}  Nc6 {[%clk 0:01:21]} 19. Bxc6 {[%clk 0:01:31]}  Bxc6 {[%clk 0:01:21]} 20. Be3 {[%clk 0:01:31]}  Bxd6 {[%clk 0:01:17]} 21. Nb3 {[%clk 0:01:32]}  c4 {[%clk 0:00:56]} 22. Nd4 {[%clk 0:01:29]}  Bd7 {[%clk 0:00:56]} 23. Rfd1 {[%clk 0:01:24]}  Bf8 {[%clk 0:00:50]} 24. Nf3 {[%clk 0:01:16]}  Bc6 {[%clk 0:00:48]} 25. Kf1 {[%clk 0:01:04]}  Nf6 {[%clk 0:00:48]} 26. Bxa7 {[%clk 0:01:00]}  Ne4 {[%clk 0:00:44]} 27. Bd4 {[%clk 0:00:58]}  Bb7 {[%clk 0:00:38]} 28. Rac1 {[%clk 0:00:49]}  Ra8 {[%clk 0:00:37]} 29. a3 {[%clk 0:00:49]}  Re8 {[%clk 0:00:30]} 30. Be3 {[%clk 0:00:42]}  Nf6 {[%clk 0:00:26]} 31. Bg5 {[%clk 0:00:39]}  Ne4 {[%clk 0:00:25]} 32. Rd7 {[%clk 0:00:36]}  Bc6 {[%clk 0:00:20]} 33. Rc7 {[%clk 0:00:36]}  Ba8 {[%clk 0:00:19]} 34. Rd1 {[%clk 0:00:34]}  Bd6 {[%clk 0:00:10]} 35. Rd7 {[%clk 0:00:20]}  Nxg5 {[%clk 0:00:10]} 36. Nxg5 {[%clk 0:00:18]}  Be7 {[%clk 0:00:10]} 37. Nf3 {[%clk 0:00:17]}  Bf6 {[%clk 0:00:10]} 38. Ra7 {[%clk 0:00:16]}  Bxb2 {[%clk 0:00:09]} 39. Rdd7 {[%clk 0:00:15]}  Bf6 {[%clk 0:00:07]} 40. Rdc7 {[%clk 0:00:15]}  c3 {[%clk 0:00:07]} 41. Ne1 {[%clk 0:00:13]}  Be4 {[%clk 0:00:07]} 42. Nd3 {[%clk 0:00:11]}  Bd5 {[%clk 0:00:06]} 43. Nb4 {[%clk 0:00:10]}  Bc4 {[%clk 0:00:06]} 44. a4 {[%clk 0:00:09]}  Rxe2 {[%clk 0:00:06]} 45. Rxc4 {[%clk 0:00:08]}  Re8 {[%clk 0:00:04]} 46. Rcc7 {[%clk 0:00:07]}  bxa4 {[%clk 0:00:04]} 47. Nc2 {[%clk 0:00:06]}  h5 {[%clk 0:00:05]} 48. h4 {[%clk 0:00:06]}  Bh8 {[%clk 0:00:04]} 49. Rxa4 {[%clk 0:00:06]}  Rb8 {[%clk 0:00:05]} 50. Rac4 {[%clk 0:00:06]}  Bf6 {[%clk 0:00:05]} 51. Rxc3 {[%clk 0:00:06]}  Bxc3 {[%clk 0:00:04]} 52. Rxc3 {[%clk 0:00:07]}  Kg7 {[%clk 0:00:05]} 53. Rc7+ {[%clk 0:00:07]}  Kf6 {[%clk 0:00:06]} 54. Rc6+ {[%clk 0:00:08]}  Kf7 {[%clk 0:00:06]} 55. Rc4 {[%clk 0:00:08]}  Rb1+ {[%clk 0:00:06]} 56. Kg2 {[%clk 0:00:08]}  Rb2 {[%clk 0:00:07]} 57. Ne3 {[%clk 0:00:08]}  Rb3 {[%clk 0:00:07]} 58. Rf4 {[%clk 0:00:08]}  Kf6 {[%clk 0:00:07]} 59. Nd5+ {[%clk 0:00:08]}  Ke5 {[%clk 0:00:07]} 60. Rf3 {[%clk 0:00:08]}  Rxf3 {[%clk 0:00:06]} 61. Kxf3 {[%clk 0:00:09]}  Kxd5 {[%clk 0:00:06]} 62. Kf4 {[%clk 0:00:09]}  Ke6 {[%clk 0:00:07]} 63. Kg5 {[%clk 0:00:10]}  Kf7 {[%clk 0:00:07]} 64. Kh6 {[%clk 0:00:11]}  Kf6 {[%clk 0:00:07]} 65. f4 {[%clk 0:00:09]}  Kf7 {[%clk 0:00:07]} 66. Kh7 {[%clk 0:00:10]}  Kf6 {[%clk 0:00:07]} 67. Kg8 {[%clk 0:00:10]}  Ke6 {[%clk 0:00:07]} 68. Kg7 {[%clk 0:00:10]}  Kd5 {[%clk 0:00:08]} 69. Kxg6 {[%clk 0:00:10]}  Ke4 {[%clk 0:00:09]} 70. Kxh5 {[%clk 0:00:10]}  Kf3 {[%clk 0:00:10]} 71. Kg5 {[%clk 0:00:11]}  Kxg3 {[%clk 0:00:11]} 72. h5 {[%clk 0:00:11]}  Kf3 {[%clk 0:00:11]} 73. h6 {[%clk 0:00:12]} 1-0


[Site "https://www.chess.com"]

[Event "Titled Tuesday Blitz January 03 Early 2023"]
[White "Golubovskis, Maksims"]
[Black "Guzman, Christopher"]
[WhiteFideId "11608528"]
[BlackFideId "6405096"]
[WhiteElo "2176"]
[BlackElo "2271"]
[Result "0-1"]
[Round "03"]
[TimeControl "180+2"]
[Date "2023.01.03"]
[WhiteClock "0:00:03"]
[BlackClock "0:00:38"]

1. d4 {[%clk 0:02:54]}  Nf6 {[%clk 0:02:58]} 2. c4 {[%clk 0:02:55]}  e6 {[%clk 0:02:54]} 3. Nc3 {[%clk 0:02:53]}  Bb4 {[%clk 0:02:54]} 4. e3 {[%clk 0:02:52]}  O-O {[%clk 0:02:54]} 5. Bd3 {[%clk 0:02:52]}  b6 {[%clk 0:02:54]} 6. Ne2 {[%clk 0:02:53]}  Bb7 {[%clk 0:02:54]} 7. O-O {[%clk 0:02:54]}  Re8 {[%clk 0:02:53]} 8. a3 {[%clk 0:02:54]}  Bf8 {[%clk 0:02:53]} 9. e4 {[%clk 0:02:53]}  d6 {[%clk 0:02:53]} 10. Bg5 {[%clk 0:02:48]}  h6 {[%clk 0:02:52]} 11. Bh4 {[%clk 0:02:48]}  Be7 {[%clk 0:02:52]} 12. Bg3 {[%clk 0:02:34]}  Nh5 {[%clk 0:02:42]} 13. Qd2 {[%clk 0:02:21]}  Nxg3 {[%clk 0:02:40]} 14. hxg3 {[%clk 0:02:18]}  a5 {[%clk 0:02:35]} 15. f4 {[%clk 0:02:10]}  Nc6 {[%clk 0:02:33]} 16. d5 {[%clk 0:02:00]}  Nb8 {[%clk 0:02:32]} 17. Nd4 {[%clk 0:01:59]}  Bc8 {[%clk 0:02:08]} 18. Rae1 {[%clk 0:01:44]}  Bf6 {[%clk 0:02:05]} 19. e5 {[%clk 0:01:41]}  dxe5 {[%clk 0:02:03]} 20. fxe5 {[%clk 0:01:41]}  Bg5 {[%clk 0:02:03]} 21. Qf2 {[%clk 0:01:41]}  Qe7 {[%clk 0:02:02]} 22. d6 {[%clk 0:01:12]}  cxd6 {[%clk 0:01:56]} 23. exd6 {[%clk 0:01:11]}  Qd7 {[%clk 0:01:55]} 24. Ndb5 {[%clk 0:01:02]}  Na6 {[%clk 0:01:51]} 25. Qxb6 {[%clk 0:00:55]}  Bb7 {[%clk 0:01:49]} 26. Ne4 {[%clk 0:00:51]}  Reb8 {[%clk 0:01:43]} 27. Qd4 {[%clk 0:00:46]}  Bd8 {[%clk 0:01:38]} 28. Kh1 {[%clk 0:00:43]}  Bc6 {[%clk 0:01:37]} 29. Qe5 {[%clk 0:00:34]}  f6 {[%clk 0:01:17]} 30. Qh5 {[%clk 0:00:30]}  f5 {[%clk 0:01:17]} 31. Nec3 {[%clk 0:00:25]}  Nc5 {[%clk 0:01:17]} 32. Bc2 {[%clk 0:00:23]}  Bf6 {[%clk 0:01:17]} 33. g4 {[%clk 0:00:16]}  Ne4 {[%clk 0:01:11]} 34. Bxe4 {[%clk 0:00:12]}  fxe4 {[%clk 0:01:10]} 35. Nxe4 {[%clk 0:00:08]}  Bxe4 {[%clk 0:01:00]} 36. Rxe4 {[%clk 0:00:08]}  Rc8 {[%clk 0:01:00]} 37. Qg6 {[%clk 0:00:06]}  Qf7 {[%clk 0:00:57]} 38. Qxf7+ {[%clk 0:00:06]}  Kxf7 {[%clk 0:00:57]} 39. Rf2 {[%clk 0:00:02]}  Rc6 {[%clk 0:00:54]} 40. Nc7 {[%clk 0:00:02]}  Rc8 {[%clk 0:00:50]} 41. Nxe6 {[%clk 0:00:02]}  Rxd6 {[%clk 0:00:44]} 42. Nf4 {[%clk 0:00:03]}  Rdc6 {[%clk 0:00:39]} 43. b3 {[%clk 0:00:03]}  a4 {[%clk 0:00:38]} 0-1


[Site "https://www.chess.com"]

[Event "Titled Tuesday Blitz January 03 Early 2023"]
[White "Aldokhin, Ivan"]
[Black "Mazurkiewicz, Michal"]
[WhiteFideId "24115720"]
[BlackFideId "1124943"]
[WhiteElo "2413"]
[BlackElo "2145"]
[Result "1-0"]
[Round "03"]
[TimeControl "180+2"]
[Date "2023.01.03"]
[WhiteClock "0:00:05"]
[BlackClock "0:00:06"]

1. e4 {[%clk 0:02:59]}  d6 {[%clk 0:02:58]} 2. d4 {[%clk 0:02:59]}  Nf6 {[%clk 0:02:57]} 3. Nc3 {[%clk 0:02:59]}  c6 {[%clk 0:02:58]} 4. Bg5 {[%clk 0:02:58]}  Nbd7 {[%clk 0:02:56]} 5. Qd2 {[%clk 0:02:57]}  e5 {[%clk 0:02:56]} 6. f4 {[%clk 0:02:53]}  Be7 {[%clk 0:02:56]} 7. Nf3 {[%clk 0:02:53]}  h6 {[%clk 0:02:48]} 8. Bxf6 {[%clk 0:02:22]}  Bxf6 {[%clk 0:02:49]} 9. fxe5 {[%clk 0:02:19]}  dxe5 {[%clk 0:02:50]} 10. d5 {[%clk 0:02:19]}  O-O {[%clk 0:02:48]} 11. O-O-O {[%clk 0:02:18]}  Nc5 {[%clk 0:02:44]} 12. Be2 {[%clk 0:02:13]}  Bg4 {[%clk 0:02:37]} 13. Kb1 {[%clk 0:02:13]}  Rc8 {[%clk 0:02:31]} 14. Qe3 {[%clk 0:02:12]}  Qb6 {[%clk 0:02:22]} 15. Rhf1 {[%clk 0:01:40]}  Na4 {[%clk 0:02:12]} 16. Qxb6 {[%clk 0:01:32]}  Nxc3+ {[%clk 0:02:12]} 17. bxc3 {[%clk 0:01:33]}  axb6 {[%clk 0:02:13]} 18. Kb2 {[%clk 0:01:24]}  cxd5 {[%clk 0:02:00]} 19. Rxd5 {[%clk 0:01:19]}  Be6 {[%clk 0:02:00]} 20. Rb5 {[%clk 0:01:14]}  Rc6 {[%clk 0:02:00]} 21. Nxe5 {[%clk 0:00:45]}  Rc7 {[%clk 0:01:48]} 22. Rxf6 {[%clk 0:00:44]}  gxf6 {[%clk 0:01:48]} 23. Ng4 {[%clk 0:00:44]}  Bxg4 {[%clk 0:01:36]} 24. Bxg4 {[%clk 0:00:43]}  Rc6 {[%clk 0:01:36]} 25. Bf3 {[%clk 0:00:37]}  Rd6 {[%clk 0:01:33]} 26. e5 {[%clk 0:00:28]}  fxe5 {[%clk 0:01:33]} 27. Rxe5 {[%clk 0:00:29]}  Re6 {[%clk 0:01:04]} 28. Rd5 {[%clk 0:00:22]}  Kg7 {[%clk 0:00:45]} 29. Rd7 {[%clk 0:00:22]}  Rc8 {[%clk 0:00:34]} 30. Rxb7 {[%clk 0:00:17]}  Rc5 {[%clk 0:00:32]} 31. a4 {[%clk 0:00:14]}  h5 {[%clk 0:00:20]} 32. c4 {[%clk 0:00:14]}  Rf6 {[%clk 0:00:07]} 33. Kb3 {[%clk 0:00:14]}  h4 {[%clk 0:00:06]} 34. h3 {[%clk 0:00:14]}  Rg5 {[%clk 0:00:06]} 35. Kb4 {[%clk 0:00:12]}  Rg3 {[%clk 0:00:06]} 36. Bd5 {[%clk 0:00:10]}  Rg5 {[%clk 0:00:03]} 37. Kb5 {[%clk 0:00:06]}  Rf2 {[%clk 0:00:03]} 38. Kxb6 {[%clk 0:00:05]}  Rxc2 {[%clk 0:00:04]} 39. Rxf7+ {[%clk 0:00:04]}  Kg6 {[%clk 0:00:04]} 40. Rc7 {[%clk 0:00:03]}  Rb2+ {[%clk 0:00:04]} 41. Kc6 {[%clk 0:00:03]}  Rc2 {[%clk 0:00:05]} 42. a5 {[%clk 0:00:03]}  Ra2 {[%clk 0:00:05]} 43. Ra7 {[%clk 0:00:03]}  Kf6 {[%clk 0:00:04]} 44. Kc5 {[%clk 0:00:03]}  Ke5 {[%clk 0:00:05]} 45. a6 {[%clk 0:00:04]}  Kf4 {[%clk 0:00:05]} 46. Ra8 {[%clk 0:00:04]}  Kg3 {[%clk 0:00:06]} 47. a7 {[%clk 0:00:05]}  Rg7 {[%clk 0:00:06]} 48. Rg8 {[%clk 0:00:04]}  Rxg8 {[%clk 0:00:06]} 49. Bxg8 {[%clk 0:00:04]}  Rxa7 {[%clk 0:00:07]} 50. Bd5 {[%clk 0:00:05]}  Rg7 {[%clk 0:00:08]} 51. Kd6 {[%clk 0:00:05]}  Kf4 {[%clk 0:00:08]} 52. c5 {[%clk 0:00:05]}  Rg6+ {[%clk 0:00:08]} 53. Kd7 {[%clk 0:00:03]}  Rg3 {[%clk 0:00:08]} 54. c6 {[%clk 0:00:03]}  Rd3 {[%clk 0:00:08]} 55. Kd6 {[%clk 0:00:03]}  Rc3 {[%clk 0:00:01]} 56. c7 {[%clk 0:00:03]}  Ra3 {[%clk 0:00:02]} 57. Bc6 {[%clk 0:00:03]}  Ra8 {[%clk 0:00:02]} 58. Bxa8 {[%clk 0:00:02]}  Kg3 {[%clk 0:00:03]} 59. c8=Q {[%clk 0:00:02]}  Kh2 {[%clk 0:00:03]} 60. Qg4 {[%clk 0:00:03]}  Kh1 {[%clk 0:00:04]} 61. Qxh4 {[%clk 0:00:02]}  Kh2 {[%clk 0:00:05]} 62. Qf4+ {[%clk 0:00:03]}  Kh1 {[%clk 0:00:05]} 63. g4+ {[%clk 0:00:03]}  Kg1 {[%clk 0:00:05]} 64. Qg3+ {[%clk 0:00:04]}  Kf1 {[%clk 0:00:05]} 65. Qg2+ {[%clk 0:00:05]}  Ke1 {[%clk 0:00:06]} 66. Be4 {[%clk 0:00:05]} 1-0


[Site "https://www.chess.com"]

[Event "Titled Tuesday Blitz January 03 Early 2023"]
[White "Maksimenko, Viktor"]
[Black "Stepanencu, Nicodim-Cosmin"]
[WhiteFideId "13710478"]
[BlackFideId "1256220"]
[WhiteElo "2196"]
[BlackElo "2303"]
[Result "1/2-1/2"]
[Round "03"]
[TimeControl "180+2"]
[Date "2023.01.03"]
[WhiteClock "0:00:36"]
[BlackClock "0:00:01"]

1. d4 {[%clk 0:03:00]}  Nf6 {[%clk 0:02:54]} 2. Nf3 {[%clk 0:03:00]}  g6 {[%clk 0:02:55]} 3. c4 {[%clk 0:02:59]}  Bg7 {[%clk 0:02:55]} 4. Nc3 {[%clk 0:03:00]}  O-O {[%clk 0:02:49]} 5. e4 {[%clk 0:03:00]}  d6 {[%clk 0:02:50]} 6. h3 {[%clk 0:03:00]}  e5 {[%clk 0:02:49]} 7. d5 {[%clk 0:03:00]}  Nh5 {[%clk 0:02:49]} 8. g3 {[%clk 0:02:56]}  a5 {[%clk 0:02:36]} 9. Be2 {[%clk 0:02:52]}  Na6 {[%clk 0:02:35]} 10. Be3 {[%clk 0:02:52]}  Nc5 {[%clk 0:02:35]} 11. Nd2 {[%clk 0:02:52]}  Nf6 {[%clk 0:02:30]} 12. g4 {[%clk 0:02:52]}  Nfd7 {[%clk 0:02:29]} 13. Qc2 {[%clk 0:02:51]}  a4 {[%clk 0:02:26]} 14. a3 {[%clk 0:02:47]}  Kh8 {[%clk 0:02:14]} 15. O-O-O {[%clk 0:02:46]}  Nb6 {[%clk 0:01:53]} 16. h4 {[%clk 0:02:43]}  f5 {[%clk 0:01:51]} 17. h5 {[%clk 0:02:43]}  f4 {[%clk 0:01:40]} 18. Bxc5 {[%clk 0:02:43]}  dxc5 {[%clk 0:01:40]} 19. hxg6 {[%clk 0:02:44]}  h6 {[%clk 0:01:41]} 20. g5 {[%clk 0:02:45]}  Qxg5 {[%clk 0:01:40]} 21. Rdg1 {[%clk 0:02:45]}  Qf6 {[%clk 0:01:38]} 22. Bg4 {[%clk 0:02:46]}  Bxg4 {[%clk 0:01:33]} 23. Rxg4 {[%clk 0:02:47]}  Nc8 {[%clk 0:01:32]} 24. f3 {[%clk 0:02:41]}  Nd6 {[%clk 0:01:31]} 25. Nxa4 {[%clk 0:02:41]}  b6 {[%clk 0:01:26]} 26. Nc3 {[%clk 0:02:40]}  Rfb8 {[%clk 0:01:20]} 27. Nb5 {[%clk 0:02:39]}  Ne8 {[%clk 0:01:04]} 28. Nb1 {[%clk 0:02:27]}  Bf8 {[%clk 0:00:54]} 29. N1c3 {[%clk 0:02:20]}  Kg7 {[%clk 0:00:54]} 30. Qh2 {[%clk 0:02:19]}  Kg8 {[%clk 0:00:53]} 31. g7 {[%clk 0:02:16]}  Bxg7 {[%clk 0:00:53]} 32. Qxh6 {[%clk 0:02:16]}  Qxh6 {[%clk 0:00:51]} 33. Rxh6 {[%clk 0:02:17]}  Rd8 {[%clk 0:00:45]} 34. Rhg6 {[%clk 0:02:08]}  Rd7 {[%clk 0:00:45]} 35. R6g5 {[%clk 0:02:08]}  Kf7 {[%clk 0:00:40]} 36. Rf5+ {[%clk 0:02:07]}  Bf6 {[%clk 0:00:39]} 37. Rh5 {[%clk 0:02:05]}  Ng7 {[%clk 0:00:37]} 38. Rh1 {[%clk 0:02:01]}  Rg8 {[%clk 0:00:30]} 39. Kc2 {[%clk 0:02:00]}  Ne8 {[%clk 0:00:27]} 40. Rh7+ {[%clk 0:02:00]}  Bg7 {[%clk 0:00:27]} 41. Rh1 {[%clk 0:01:53]}  Bf6 {[%clk 0:00:26]} 42. Rxg8 {[%clk 0:01:53]}  Kxg8 {[%clk 0:00:27]} 43. Na7 {[%clk 0:01:53]}  Rg7 {[%clk 0:00:26]} 44. Rf1 {[%clk 0:01:52]}  Rg2+ {[%clk 0:00:26]} 45. Kb3 {[%clk 0:01:52]}  Bh4 {[%clk 0:00:24]} 46. Nc6 {[%clk 0:01:49]}  Bf6 {[%clk 0:00:20]} 47. Nb5 {[%clk 0:01:49]}  Kf7 {[%clk 0:00:19]} 48. Kc3 {[%clk 0:01:44]}  Kg6 {[%clk 0:00:19]} 49. b4 {[%clk 0:01:45]}  cxb4+ {[%clk 0:00:12]} 50. axb4 {[%clk 0:01:45]}  Kh5 {[%clk 0:00:12]} 51. c5 {[%clk 0:01:45]}  bxc5 {[%clk 0:00:10]} 52. bxc5 {[%clk 0:01:46]}  Kh4 {[%clk 0:00:10]} 53. d6 {[%clk 0:01:46]}  cxd6 {[%clk 0:00:11]} 54. cxd6 {[%clk 0:01:47]}  Nxd6 {[%clk 0:00:04]} 55. Nxd6 {[%clk 0:01:48]}  Kg3 {[%clk 0:00:05]} 56. Nf5+ {[%clk 0:01:48]}  Kh2 {[%clk 0:00:05]} 57. Nb4 {[%clk 0:01:45]}  Bd8 {[%clk 0:00:04]} 58. Nd3 {[%clk 0:01:43]}  Ba5+ {[%clk 0:00:03]} 59. Kb3 {[%clk 0:01:43]}  Bc7 {[%clk 0:00:03]} 60. Rf2 {[%clk 0:01:39]}  Kg1 {[%clk 0:00:03]} 61. Rc2 {[%clk 0:01:33]}  Rxc2 {[%clk 0:00:02]} 62. Kxc2 {[%clk 0:01:33]}  Kg2 {[%clk 0:00:03]} 63. Ne1+ {[%clk 0:01:32]}  Kf2 {[%clk 0:00:03]} 64. Kd1 {[%clk 0:01:30]}  Ba5 {[%clk 0:00:03]} 65. Nd3+ {[%clk 0:01:25]}  Kxf3 {[%clk 0:00:04]} 66. Nd6 {[%clk 0:01:24]}  Bc7 {[%clk 0:00:04]} 67. Nxe5+ {[%clk 0:01:22]}  Kg2 {[%clk 0:00:03]} 68. Nec4 {[%clk 0:00:49]}  f3 {[%clk 0:00:03]} 69. e5 {[%clk 0:00:43]}  f2 {[%clk 0:00:02]} 70. Ne3+ {[%clk 0:00:43]}  Kf3 {[%clk 0:00:02]} 71. Nf1 {[%clk 0:00:43]}  Kf4 {[%clk 0:00:03]} 72. Nc4 {[%clk 0:00:35]}  Bxe5 {[%clk 0:00:02]} 73. Ke2 {[%clk 0:00:36]}  Bd4 {[%clk 0:00:03]} 74. Kd3 {[%clk 0:00:37]}  Bc5 {[%clk 0:00:03]} 75. Kc3 {[%clk 0:00:37]}  Kf3 {[%clk 0:00:03]} 76. Ncd2+ {[%clk 0:00:37]}  Ke2 {[%clk 0:00:03]} 77. Kc4 {[%clk 0:00:38]}  Be7 {[%clk 0:00:03]} 78. Kc3 {[%clk 0:00:36]}  Bf6+ {[%clk 0:00:02]} 79. Kc2 {[%clk 0:00:37]}  Bg5 {[%clk 0:00:02]} 80. Kc1 {[%clk 0:00:34]}  Bxd2+ {[%clk 0:00:01]} 81. Nxd2 {[%clk 0:00:35]}  f1=Q+ {[%clk 0:00:01]} 82. Nxf1 {[%clk 0:00:36]} 1/2-1/2


[Site "https://www.chess.com"]

[Event "Titled Tuesday Blitz January 03 Early 2023"]
[White "Gatterer, Florian"]
[Black "Atanasov, Anthony"]
[WhiteFideId "811688"]
[BlackFideId "2623897"]
[WhiteElo "2170"]
[BlackElo "2368"]
[Result "0-1"]
[Round "03"]
[TimeControl "180+2"]
[Date "2023.01.03"]
[WhiteClock "0:00:43"]
[BlackClock "0:00:22"]

1. Nf3 {[%clk 0:03:00]}  Nf6 {[%clk 0:03:00]} 2. c4 {[%clk 0:02:57]}  e6 {[%clk 0:02:59]} 3. Nc3 {[%clk 0:02:56]}  d5 {[%clk 0:02:57]} 4. d4 {[%clk 0:02:55]}  c5 {[%clk 0:02:56]} 5. cxd5 {[%clk 0:02:54]}  Nxd5 {[%clk 0:02:57]} 6. e4 {[%clk 0:02:52]}  Nxc3 {[%clk 0:02:58]} 7. bxc3 {[%clk 0:02:53]}  cxd4 {[%clk 0:02:59]} 8. cxd4 {[%clk 0:02:53]}  Bb4+ {[%clk 0:02:59]} 9. Bd2 {[%clk 0:02:53]}  Bxd2+ {[%clk 0:03:00]} 10. Qxd2 {[%clk 0:02:53]}  O-O {[%clk 0:03:01]} 11. Bc4 {[%clk 0:02:53]}  b6 {[%clk 0:02:58]} 12. O-O {[%clk 0:02:52]}  Bb7 {[%clk 0:02:58]} 13. Rfe1 {[%clk 0:02:50]}  Nc6 {[%clk 0:02:56]} 14. Rad1 {[%clk 0:02:42]}  Rc8 {[%clk 0:02:37]} 15. Bd3 {[%clk 0:02:33]}  Nxd4 {[%clk 0:02:22]} 16. Ng5 {[%clk 0:02:27]}  h6 {[%clk 0:02:14]} 17. Nh3 {[%clk 0:02:14]}  Qh4 {[%clk 0:02:12]} 18. Nf4 {[%clk 0:01:52]}  Qg5 {[%clk 0:01:41]} 19. Qe3 {[%clk 0:01:29]}  Rfd8 {[%clk 0:01:41]} 20. g3 {[%clk 0:01:17]}  Rc3 {[%clk 0:01:32]} 21. e5 {[%clk 0:01:10]}  Nf3+ {[%clk 0:01:25]} 22. Kf1 {[%clk 0:01:07]}  Nxh2+ {[%clk 0:01:20]} 23. Ke2 {[%clk 0:00:58]}  Ba6 {[%clk 0:00:32]} 24. Bxa6 {[%clk 0:00:48]}  Qg4+ {[%clk 0:00:23]} 25. f3 {[%clk 0:00:43]}  Rxe3+ {[%clk 0:00:22]} 0-1


[Site "https://www.chess.com"]